[Event "Titled Tuesday Blitz February 22 Late 2022"]
[White "Budrewicz, Krzysztof"]
[Black "Rytenko, Vsevolod"]
[WhiteFideId "1127950"]
[BlackFideId "14133040"]
[WhiteElo "2248"]
[BlackElo "2144"]
[Result "1-0"]
[Round "05"]
[TimeControl "180+1"]
[Date "2022.02.23"]
[WhiteClock "0:00:36"]
[BlackClock "0:01:31"]

1. d4 {[%clk 0:03:00]}  Nf6 {[%clk 0:02:58]} 2. c4 {[%clk 0:03:00]}  e6 {[%clk 0:02:56]} 3. Nf3 {[%clk 0:03:00]}  Bb4+ {[%clk 0:02:55]} 4. Bd2 {[%clk 0:03:00]}  Be7 {[%clk 0:02:56]} 5. Nc3 {[%clk 0:02:59]}  O-O {[%clk 0:02:57]} 6. e4 {[%clk 0:02:56]}  d5 {[%clk 0:02:57]} 7. e5 {[%clk 0:02:55]}  Ne4 {[%clk 0:02:57]} 8. Bd3 {[%clk 0:02:55]}  Nxd2 {[%clk 0:02:56]} 9. Qxd2 {[%clk 0:02:56]}  dxc4 {[%clk 0:02:54]} 10. Bxc4 {[%clk 0:02:56]}  c5 {[%clk 0:02:55]} 11. d5 {[%clk 0:02:55]}  exd5 {[%clk 0:02:55]} 12. Nxd5 {[%clk 0:02:55]}  Nc6 {[%clk 0:02:55]} 13. O-O {[%clk 0:02:54]}  Be6 {[%clk 0:02:56]} 14. Rad1 {[%clk 0:02:54]}  Bg4 {[%clk 0:02:42]} 15. Qf4 {[%clk 0:02:52]}  Bxf3 {[%clk 0:02:41]} 16. Nf6+ {[%clk 0:02:46]}  Bxf6 {[%clk 0:02:35]} 17. Rxd8 {[%clk 0:02:46]}  Bxd8 {[%clk 0:02:30]} 18. Qxf3 {[%clk 0:02:29]}  Nxe5 {[%clk 0:02:29]} 19. Qxb7 {[%clk 0:02:29]}  Bf6 {[%clk 0:02:26]} 20. Bd5 {[%clk 0:02:12]}  Rab8 {[%clk 0:02:26]} 21. Qxa7 {[%clk 0:02:11]}  Rxb2 {[%clk 0:02:26]} 22. Qxc5 {[%clk 0:02:08]}  Nd3 {[%clk 0:02:21]} 23. Qa7 {[%clk 0:02:02]}  Rd2 {[%clk 0:02:07]} 24. Qe3 {[%clk 0:01:38]}  Bc3 {[%clk 0:02:00]} 25. Bc4 {[%clk 0:01:30]}  Rd8 {[%clk 0:01:48]} 26. Qe7 {[%clk 0:01:30]}  Bf6 {[%clk 0:01:39]} 27. Qxf7+ {[%clk 0:01:25]}  Kh8 {[%clk 0:01:40]} 28. Bxd3 {[%clk 0:00:54]}  R2xd3 {[%clk 0:01:41]} 29. g3 {[%clk 0:00:54]}  Ra3 {[%clk 0:01:37]} 30. Re1 {[%clk 0:00:51]}  Raa8 {[%clk 0:01:35]} 31. Re2 {[%clk 0:00:46]}  Rf8 {[%clk 0:01:35]} 32. Qd5 {[%clk 0:00:45]}  h6 {[%clk 0:01:36]} 33. h4 {[%clk 0:00:44]}  Rfd8 {[%clk 0:01:36]} 34. Qe6 {[%clk 0:00:43]}  Ra5 {[%clk 0:01:32]} 35. Kg2 {[%clk 0:00:42]}  Rda8 {[%clk 0:01:31]} 36. Kh3 {[%clk 0:00:42]}  R5a6 {[%clk 0:01:32]} 37. Qf7 {[%clk 0:00:41]}  R6a7 {[%clk 0:01:32]} 38. Re8+ {[%clk 0:00:40]}  Kh7 {[%clk 0:01:32]} 39. Qg8+ {[%clk 0:00:36]}  Kg6 {[%clk 0:01:31]} 40. Rxa8 {[%clk 0:00:36]} 1-0


[Site "https://www.chess.com"]

[Event "Titled Tuesday Blitz February 22 Late 2022"]
[White "Chabris, Christopher"]
[Black "Munoz, Francisco Javier"]
[WhiteFideId "2005263"]
[BlackFideId "128368"]
[WhiteElo "2317"]
[BlackElo "2383"]
[Result "0-1"]
[Round "05"]
[TimeControl "180+1"]
[Date "2022.02.23"]
[WhiteClock "0:00:01"]
[BlackClock "0:00:15"]

1. e4 {[%clk 0:02:59]}  e5 {[%clk 0:02:54]} 2. Nf3 {[%clk 0:02:59]}  Nc6 {[%clk 0:02:54]} 3. Bb5 {[%clk 0:02:59]}  a6 {[%clk 0:02:54]} 4. Ba4 {[%clk 0:03:00]}  Nf6 {[%clk 0:02:54]} 5. O-O {[%clk 0:03:00]}  d6 {[%clk 0:02:55]} 6. c3 {[%clk 0:02:58]}  Bd7 {[%clk 0:02:54]} 7. d4 {[%clk 0:02:53]}  g6 {[%clk 0:02:54]} 8. d5 {[%clk 0:02:44]}  Nb8 {[%clk 0:02:51]} 9. Re1 {[%clk 0:02:37]}  Bg7 {[%clk 0:02:50]} 10. c4 {[%clk 0:02:36]}  O-O {[%clk 0:02:50]} 11. Nc3 {[%clk 0:02:35]}  Nh5 {[%clk 0:02:19]} 12. Bxd7 {[%clk 0:01:59]}  Nxd7 {[%clk 0:02:18]} 13. Be3 {[%clk 0:01:56]}  b6 {[%clk 0:01:51]} 14. b4 {[%clk 0:01:52]}  Kh8 {[%clk 0:01:44]} 15. a4 {[%clk 0:01:47]}  a5 {[%clk 0:01:43]} 16. bxa5 {[%clk 0:01:46]}  Rxa5 {[%clk 0:01:42]} 17. Nd2 {[%clk 0:01:44]}  Nf4 {[%clk 0:01:40]} 18. Nb3 {[%clk 0:01:42]}  Ra8 {[%clk 0:01:37]} 19. g3 {[%clk 0:01:23]}  Nh5 {[%clk 0:01:23]} 20. a5 {[%clk 0:01:21]}  Nc5 {[%clk 0:01:21]} 21. Nxc5 {[%clk 0:01:12]}  bxc5 {[%clk 0:01:19]} 22. a6 {[%clk 0:01:11]}  Qc8 {[%clk 0:01:14]} 23. a7 {[%clk 0:01:05]}  Nf6 {[%clk 0:00:41]} 24. f3 {[%clk 0:01:02]}  Nd7 {[%clk 0:00:41]} 25. Qd2 {[%clk 0:00:53]}  Nb6 {[%clk 0:00:41]} 26. Qd3 {[%clk 0:00:50]}  f5 {[%clk 0:00:41]} 27. Reb1 {[%clk 0:00:46]}  f4 {[%clk 0:00:41]} 28. Bf2 {[%clk 0:00:46]}  fxg3 {[%clk 0:00:41]} 29. hxg3 {[%clk 0:00:44]}  Rf7 {[%clk 0:00:30]} 30. Kg2 {[%clk 0:00:43]}  g5 {[%clk 0:00:28]} 31. g4 {[%clk 0:00:37]}  Bf8 {[%clk 0:00:28]} 32. Rh1 {[%clk 0:00:34]}  Kg8 {[%clk 0:00:20]} 33. Rh3 {[%clk 0:00:33]}  Qb7 {[%clk 0:00:18]} 34. Rah1 {[%clk 0:00:26]}  Rxa7 {[%clk 0:00:17]} 35. Be3 {[%clk 0:00:24]}  Rg7 {[%clk 0:00:16]} 36. Qd2 {[%clk 0:00:20]}  Nxc4 {[%clk 0:00:16]} 37. Qe1 {[%clk 0:00:14]}  Qb2+ {[%clk 0:00:15]} 38. Kg3 {[%clk 0:00:08]}  Ra3 {[%clk 0:00:15]} 39. Bxg5 {[%clk 0:00:06]}  Qxc3 {[%clk 0:00:14]} 40. Qxc3 {[%clk 0:00:03]}  Rxc3 {[%clk 0:00:15]} 41. Bf6 {[%clk 0:00:03]}  Rf7 {[%clk 0:00:16]} 42. g5 {[%clk 0:00:03]}  Nd2 {[%clk 0:00:13]} 43. Kg4 {[%clk 0:00:03]}  Rxf3 {[%clk 0:00:12]} 44. Rxf3 {[%clk 0:00:03]}  Nxf3 {[%clk 0:00:13]} 45. Kxf3 {[%clk 0:00:03]}  Be7 {[%clk 0:00:12]} 46. Kg4 {[%clk 0:00:02]}  Bxf6 {[%clk 0:00:12]} 47. gxf6 {[%clk 0:00:02]}  Rxf6 {[%clk 0:00:13]} 48. Rc1 {[%clk 0:00:03]}  Rf4+ {[%clk 0:00:13]} 49. Kg5 {[%clk 0:00:03]}  Rxe4 {[%clk 0:00:14]} 50. Ra1 {[%clk 0:00:02]}  Kg7 {[%clk 0:00:14]} 51. Ra7 {[%clk 0:00:02]}  Rf4 {[%clk 0:00:15]} 52. Rxc7+ {[%clk 0:00:02]}  Rf7 {[%clk 0:00:15]} 53. Rc6 {[%clk 0:00:02]}  Rd7 {[%clk 0:00:15]} 54. Kf5 {[%clk 0:00:01]}  Kf7 {[%clk 0:00:16]} 55. Rc8 {[%clk 0:00:01]}  Ke7 {[%clk 0:00:16]} 56. Rh8 {[%clk 0:00:01]}  c4 {[%clk 0:00:14]} 57. Rxh7+ {[%clk 0:00:01]}  Kd8 {[%clk 0:00:15]} 0-1


[Site "https://www.chess.com"]

[Event "Titled Tuesday Blitz February 22 Late 2022"]
[White "Colas, Joshua"]
[Black "Bluebaum, Matthias"]
[WhiteFideId "2044447"]
[BlackFideId "24651516"]
[WhiteElo "2347"]
[BlackElo "2550"]
[Result "0-1"]
[Round "05"]
[TimeControl "180+1"]
[Date "2022.02.22"]
[WhiteClock "0:00:27"]
[BlackClock "0:00:29"]

1. Nf3 {[%clk 0:03:00]}  d5 {[%clk 0:02:59]} 2. c4 {[%clk 0:03:01]}  d4 {[%clk 0:02:59]} 3. b4 {[%clk 0:03:01]}  c5 {[%clk 0:02:58]} 4. e3 {[%clk 0:03:00]}  Nf6 {[%clk 0:02:55]} 5. Bb2 {[%clk 0:02:55]}  dxe3 {[%clk 0:02:54]} 6. fxe3 {[%clk 0:02:55]}  cxb4 {[%clk 0:02:55]} 7. Be2 {[%clk 0:02:52]}  g6 {[%clk 0:02:52]} 8. O-O {[%clk 0:02:52]}  Bg7 {[%clk 0:02:53]} 9. d4 {[%clk 0:02:52]}  O-O {[%clk 0:02:53]} 10. Nbd2 {[%clk 0:02:52]}  a5 {[%clk 0:02:52]} 11. a3 {[%clk 0:02:51]}  bxa3 {[%clk 0:02:52]} 12. Bxa3 {[%clk 0:02:52]}  b6 {[%clk 0:02:52]} 13. Rb1 {[%clk 0:02:50]}  Nbd7 {[%clk 0:02:49]} 14. Qc2 {[%clk 0:02:43]}  Ba6 {[%clk 0:02:46]} 15. Qa4 {[%clk 0:02:17]}  Re8 {[%clk 0:02:29]} 16. Rfd1 {[%clk 0:02:14]}  Ng4 {[%clk 0:02:22]} 17. Nf1 {[%clk 0:02:10]}  Qc7 {[%clk 0:02:15]} 18. Rb3 {[%clk 0:01:45]}  e5 {[%clk 0:02:02]} 19. h3 {[%clk 0:01:30]}  Ngf6 {[%clk 0:02:00]} 20. dxe5 {[%clk 0:01:30]}  Nxe5 {[%clk 0:01:52]} 21. Bd6 {[%clk 0:01:30]}  Qd7 {[%clk 0:01:39]} 22. Qa3 {[%clk 0:01:00]}  Nxc4 {[%clk 0:01:37]} 23. Bxc4 {[%clk 0:00:57]}  Bxc4 {[%clk 0:01:38]} 24. Rxb6 {[%clk 0:00:57]}  Nd5 {[%clk 0:01:36]} 25. Bc5 {[%clk 0:00:34]}  Qc7 {[%clk 0:01:28]} 26. Rd6 {[%clk 0:00:33]}  Nb4 {[%clk 0:01:11]} 27. Bb6 {[%clk 0:00:24]}  Qb7 {[%clk 0:01:04]} 28. Bxa5 {[%clk 0:00:23]}  Nc6 {[%clk 0:00:59]} 29. Rd7 {[%clk 0:00:23]}  Rxa5 {[%clk 0:00:53]} 30. Qc1 {[%clk 0:00:14]}  Qa6 {[%clk 0:00:53]} 31. N1d2 {[%clk 0:00:11]}  Ra1 {[%clk 0:00:48]} 32. Qc2 {[%clk 0:00:08]}  Rxd1+ {[%clk 0:00:48]} 33. Qxd1 {[%clk 0:00:09]}  Be6 {[%clk 0:00:48]} 34. Rd6 {[%clk 0:00:08]}  Bf8 {[%clk 0:00:48]} 35. Ne4 {[%clk 0:00:06]}  Bxd6 {[%clk 0:00:40]} 36. Nf6+ {[%clk 0:00:07]}  Kh8 {[%clk 0:00:40]} 37. Nxe8 {[%clk 0:00:07]}  Be7 {[%clk 0:00:34]} 38. Qc1 {[%clk 0:00:07]}  f6 {[%clk 0:00:19]} 39. Qc3 {[%clk 0:00:07]}  Qc4 {[%clk 0:00:19]} 40. Qa1 {[%clk 0:00:06]}  Qa2 {[%clk 0:00:16]} 41. Qc3 {[%clk 0:00:05]}  Qb1+ {[%clk 0:00:14]} 42. Kh2 {[%clk 0:00:06]}  Qb8+ {[%clk 0:00:14]} 43. Ne5 {[%clk 0:00:04]}  Qxe5+ {[%clk 0:00:14]} 44. Qxe5 {[%clk 0:00:05]}  Nxe5 {[%clk 0:00:15]} 45. Nc7 {[%clk 0:00:06]}  Bf7 {[%clk 0:00:15]} 46. g3 {[%clk 0:00:05]}  Bd6 {[%clk 0:00:15]} 47. Nb5 {[%clk 0:00:05]}  Bc5 {[%clk 0:00:16]} 48. Nc7 {[%clk 0:00:06]}  Kg7 {[%clk 0:00:16]} 49. Kg2 {[%clk 0:00:06]}  Bxe3 {[%clk 0:00:16]} 50. g4 {[%clk 0:00:07]}  Bb6 {[%clk 0:00:17]} 51. Nb5 {[%clk 0:00:07]}  Bd5+ {[%clk 0:00:17]} 52. Kg3 {[%clk 0:00:07]}  g5 {[%clk 0:00:18]} 53. Nd6 {[%clk 0:00:08]}  Bc7 {[%clk 0:00:18]} 54. Ne8+ {[%clk 0:00:08]}  Kf7 {[%clk 0:00:17]} 55. Nxc7 {[%clk 0:00:09]}  Bc4 {[%clk 0:00:18]} 56. Na8 {[%clk 0:00:09]}  Nd7 {[%clk 0:00:18]} 57. Nc7 {[%clk 0:00:09]}  Ke7 {[%clk 0:00:19]} 58. Kf3 {[%clk 0:00:10]}  Kd6 {[%clk 0:00:19]} 59. Ne8+ {[%clk 0:00:11]}  Ke7 {[%clk 0:00:20]} 60. Ng7 {[%clk 0:00:11]}  Bd3 {[%clk 0:00:19]} 61. Ke3 {[%clk 0:00:11]}  Bg6 {[%clk 0:00:19]} 62. h4 {[%clk 0:00:11]}  Kf7 {[%clk 0:00:19]} 63. hxg5 {[%clk 0:00:12]}  Kxg7 {[%clk 0:00:19]} 64. gxf6+ {[%clk 0:00:13]}  Kxf6 {[%clk 0:00:20]} 65. Kf4 {[%clk 0:00:14]}  h6 {[%clk 0:00:20]} 66. Kg3 {[%clk 0:00:14]}  Kg5 {[%clk 0:00:20]} 67. Kh3 {[%clk 0:00:15]}  Ne5 {[%clk 0:00:20]} 68. Kg3 {[%clk 0:00:16]}  Nxg4 {[%clk 0:00:21]} 69. Kh3 {[%clk 0:00:17]}  h5 {[%clk 0:00:21]} 70. Kg3 {[%clk 0:00:17]}  h4+ {[%clk 0:00:22]} 71. Kh3 {[%clk 0:00:18]}  Bf5 {[%clk 0:00:23]} 72. Kg2 {[%clk 0:00:19]}  Nf6 {[%clk 0:00:23]} 73. Kf3 {[%clk 0:00:19]}  Nd7 {[%clk 0:00:24]} 74. Kg2 {[%clk 0:00:20]}  Nb8 {[%clk 0:00:25]} 75. Kh2 {[%clk 0:00:21]}  Nc6 {[%clk 0:00:26]} 76. Kh1 {[%clk 0:00:21]}  Kg4 {[%clk 0:00:27]} 77. Kh2 {[%clk 0:00:22]}  Be4 {[%clk 0:00:27]} 78. Kg1 {[%clk 0:00:23]}  Kg3 {[%clk 0:00:27]} 79. Kf1 {[%clk 0:00:24]}  Nd4 {[%clk 0:00:28]} 80. Kg1 {[%clk 0:00:24]}  Bd3 {[%clk 0:00:26]} 81. Kh1 {[%clk 0:00:24]}  h3 {[%clk 0:00:27]} 82. Kg1 {[%clk 0:00:24]}  Nb5 {[%clk 0:00:27]} 83. Kh1 {[%clk 0:00:25]}  Nd6 {[%clk 0:00:27]} 84. Kg1 {[%clk 0:00:26]}  Nf5 {[%clk 0:00:27]} 85. Kh1 {[%clk 0:00:25]}  Nh4 {[%clk 0:00:28]} 86. Kg1 {[%clk 0:00:26]}  h2+ {[%clk 0:00:28]} 87. Kh1 {[%clk 0:00:27]}  Be4# {[%clk 0:00:29]} 0-1


[Site "https://www.chess.com"]

[Event "Titled Tuesday Blitz February 22 Late 2022"]
[White "Deac, Bogdan-Daniel"]
[Black "Sadhwani, Raunak"]
[WhiteFideId "1226380"]
[BlackFideId "35093487"]
[WhiteElo "2646"]
[BlackElo "2616"]
[Result "1/2-1/2"]
[Round "05"]
[TimeControl "180+1"]
[Date "2022.02.22"]
[WhiteClock "0:00:08"]
[BlackClock "0:00:14"]

1. e4 {[%clk 0:03:00]}  e5 {[%clk 0:03:00]} 2. Nf3 {[%clk 0:03:00]}  Nc6 {[%clk 0:03:01]} 3. Bb5 {[%clk 0:03:00]}  Nge7 {[%clk 0:03:01]} 4. Nc3 {[%clk 0:02:59]}  Ng6 {[%clk 0:03:01]} 5. h4 {[%clk 0:02:57]}  Be7 {[%clk 0:03:01]} 6. h5 {[%clk 0:02:36]}  Nh4 {[%clk 0:03:01]} 7. Nxh4 {[%clk 0:02:24]}  Bxh4 {[%clk 0:03:02]} 8. Qg4 {[%clk 0:02:08]}  Bf6 {[%clk 0:03:01]} 9. Nd5 {[%clk 0:02:07]}  Nd4 {[%clk 0:02:57]} 10. Bd3 {[%clk 0:02:04]}  c6 {[%clk 0:02:51]} 11. Nxf6+ {[%clk 0:02:04]}  Qxf6 {[%clk 0:02:52]} 12. c3 {[%clk 0:01:59]}  d6 {[%clk 0:02:48]} 13. Qg3 {[%clk 0:01:57]}  Ne6 {[%clk 0:02:48]} 14. Bc2 {[%clk 0:01:55]}  Bd7 {[%clk 0:02:32]} 15. d3 {[%clk 0:01:49]}  O-O-O {[%clk 0:02:26]} 16. Be3 {[%clk 0:01:48]}  c5 {[%clk 0:02:15]} 17. O-O-O {[%clk 0:01:36]}  Kb8 {[%clk 0:02:15]} 18. Qh4 {[%clk 0:01:33]}  Qxh4 {[%clk 0:02:12]} 19. Rxh4 {[%clk 0:01:31]}  f6 {[%clk 0:02:09]} 20. g3 {[%clk 0:01:27]}  Rc8 {[%clk 0:02:02]} 21. f4 {[%clk 0:01:23]}  h6 {[%clk 0:01:59]} 22. Kd2 {[%clk 0:01:17]}  Rhe8 {[%clk 0:01:54]} 23. Bb3 {[%clk 0:01:14]}  Nc7 {[%clk 0:01:46]} 24. Rf1 {[%clk 0:00:56]}  b6 {[%clk 0:01:35]} 25. Bc2 {[%clk 0:00:48]}  Re7 {[%clk 0:01:26]} 26. Bb3 {[%clk 0:00:26]}  a5 {[%clk 0:01:25]} 27. a4 {[%clk 0:00:25]}  Kb7 {[%clk 0:01:25]} 28. Rhh1 {[%clk 0:00:18]}  Rd8 {[%clk 0:01:25]} 29. Ra1 {[%clk 0:00:07]}  Bc6 {[%clk 0:01:26]} 30. fxe5 {[%clk 0:00:06]}  dxe5 {[%clk 0:01:26]} 31. Ke2 {[%clk 0:00:05]}  Bd7 {[%clk 0:01:23]} 32. Rh4 {[%clk 0:00:05]}  Be6 {[%clk 0:01:15]} 33. Bc4 {[%clk 0:00:03]}  Red7 {[%clk 0:01:10]} 34. Rhh1 {[%clk 0:00:02]}  Bg4+ {[%clk 0:01:09]} 35. Kf2 {[%clk 0:00:01]}  Be6 {[%clk 0:01:10]} 36. Ke2 {[%clk 0:00:01]}  Kc6 {[%clk 0:01:10]} 37. b3 {[%clk 0:00:01]}  Bxc4 {[%clk 0:01:08]} 38. dxc4 {[%clk 0:00:02]}  Rd3 {[%clk 0:01:09]} 39. Rac1 {[%clk 0:00:03]}  Ne6 {[%clk 0:00:50]} 40. Rhd1 {[%clk 0:00:03]}  Rxd1 {[%clk 0:00:50]} 41. Rxd1 {[%clk 0:00:04]}  Rxd1 {[%clk 0:00:50]} 42. Kxd1 {[%clk 0:00:05]}  Kd7 {[%clk 0:00:50]} 43. Ke2 {[%clk 0:00:05]}  Ke7 {[%clk 0:00:51]} 44. Kf3 {[%clk 0:00:06]}  Kf7 {[%clk 0:00:51]} 45. Kg4 {[%clk 0:00:07]}  Nc7 {[%clk 0:00:52]} 46. Kf3 {[%clk 0:00:06]}  Ne8 {[%clk 0:00:52]} 47. Ke2 {[%clk 0:00:04]}  Nd6 {[%clk 0:00:51]} 48. Kd3 {[%clk 0:00:04]}  Ke6 {[%clk 0:00:50]} 49. g4 {[%clk 0:00:05]}  Nb7 {[%clk 0:00:45]} 50. Bd2 {[%clk 0:00:04]}  Kd7 {[%clk 0:00:45]} 51. Be3 {[%clk 0:00:04]}  Nd8 {[%clk 0:00:44]} 52. Bd2 {[%clk 0:00:04]}  Nf7 {[%clk 0:00:44]} 53. Ke2 {[%clk 0:00:04]}  Ke6 {[%clk 0:00:39]} 54. Be3 {[%clk 0:00:04]}  Nd6 {[%clk 0:00:39]} 55. Kd3 {[%clk 0:00:04]}  Kf7 {[%clk 0:00:40]} 56. Bd2 {[%clk 0:00:04]}  Kg8 {[%clk 0:00:39]} 57. Be3 {[%clk 0:00:04]}  Kh7 {[%clk 0:00:39]} 58. b4 {[%clk 0:00:04]}  Nb7 {[%clk 0:00:37]} 59. Ke2 {[%clk 0:00:04]}  g6 {[%clk 0:00:33]} 60. bxc5 {[%clk 0:00:04]}  Nxc5 {[%clk 0:00:27]} 61. Bxc5 {[%clk 0:00:05]}  bxc5 {[%clk 0:00:28]} 62. Kf3 {[%clk 0:00:05]}  Kg7 {[%clk 0:00:29]} 63. Kg3 {[%clk 0:00:05]}  Kf7 {[%clk 0:00:13]} 64. hxg6+ {[%clk 0:00:05]}  Kxg6 {[%clk 0:00:14]} 65. Kh4 {[%clk 0:00:06]}  Kg7 {[%clk 0:00:14]} 66. Kg3 {[%clk 0:00:06]}  Kf7 {[%clk 0:00:14]} 67. Kh3 {[%clk 0:00:06]}  Kg7 {[%clk 0:00:13]} 68. Kg3 {[%clk 0:00:06]}  Kg6 {[%clk 0:00:13]} 69. Kh4 {[%clk 0:00:07]}  Kh7 {[%clk 0:00:13]} 70. Kg3 {[%clk 0:00:07]}  Kg7 {[%clk 0:00:13]} 71. Kh3 {[%clk 0:00:07]}  Kg6 {[%clk 0:00:14]} 72. Kh4 {[%clk 0:00:08]} 1/2-1/2


[Site "https://www.chess.com"]

[Event "Titled Tuesday Blitz February 22 Late 2022"]
[White "Debray, Christopher"]
[Black "Vovk, Orest"]
[WhiteFideId "630810"]
[BlackFideId "14113490"]
[WhiteElo "2369"]
[BlackElo "2203"]
[Result "1/2-1/2"]
[Round "05"]
[TimeControl "180+1"]
[Date "2022.02.23"]
[WhiteClock "0:00:02"]
[BlackClock "0:00:05"]

1. c4 {[%clk 0:03:00]}  g5 {[%clk 0:02:50]} 2. d4 {[%clk 0:02:54]}  h6 {[%clk 0:02:50]} 3. h4 {[%clk 0:02:50]}  g4 {[%clk 0:02:49]} 4. h5 {[%clk 0:02:43]}  Bg7 {[%clk 0:02:49]} 5. e4 {[%clk 0:02:39]}  c5 {[%clk 0:02:40]} 6. d5 {[%clk 0:02:32]}  d6 {[%clk 0:02:23]} 7. Nc3 {[%clk 0:02:28]}  Bxc3+ {[%clk 0:02:23]} 8. bxc3 {[%clk 0:02:28]}  Qa5 {[%clk 0:02:23]} 9. Qd3 {[%clk 0:02:10]}  Nf6 {[%clk 0:02:12]} 10. Ne2 {[%clk 0:02:02]}  Nbd7 {[%clk 0:02:12]} 11. Bf4 {[%clk 0:01:58]}  Qa4 {[%clk 0:02:05]} 12. Ng3 {[%clk 0:01:55]}  b6 {[%clk 0:01:49]} 13. Nf5 {[%clk 0:01:51]}  Ba6 {[%clk 0:01:46]} 14. Nxh6 {[%clk 0:01:31]}  Rxh6 {[%clk 0:01:43]} 15. Bxh6 {[%clk 0:01:29]}  Ne5 {[%clk 0:01:43]} 16. Qe3 {[%clk 0:01:15]}  Bxc4 {[%clk 0:01:40]} 17. Bf4 {[%clk 0:01:09]}  Bxf1 {[%clk 0:01:37]} 18. Bxe5 {[%clk 0:01:07]}  dxe5 {[%clk 0:01:36]} 19. Kxf1 {[%clk 0:01:06]}  Nxe4 {[%clk 0:01:33]} 20. Re1 {[%clk 0:00:58]}  f5 {[%clk 0:01:21]} 21. Kg1 {[%clk 0:00:46]}  O-O-O {[%clk 0:01:14]} 22. h6 {[%clk 0:00:44]}  Qxa2 {[%clk 0:00:57]} 23. Rh5 {[%clk 0:00:40]}  g3 {[%clk 0:00:49]} 24. fxg3 {[%clk 0:00:36]}  Nf6 {[%clk 0:00:26]} 25. Rxf5 {[%clk 0:00:32]}  Qxd5 {[%clk 0:00:24]} 26. Rxe5 {[%clk 0:00:29]}  Qc4 {[%clk 0:00:14]} 27. Rxe7 {[%clk 0:00:27]}  Ng4 {[%clk 0:00:12]} 28. Qe6+ {[%clk 0:00:27]}  Qxe6 {[%clk 0:00:12]} 29. R1xe6 {[%clk 0:00:25]}  Rd1+ {[%clk 0:00:11]} 30. Re1 {[%clk 0:00:26]}  Rxe1+ {[%clk 0:00:10]} 31. Rxe1 {[%clk 0:00:27]}  Nxh6 {[%clk 0:00:10]} 32. Re7 {[%clk 0:00:26]}  a5 {[%clk 0:00:09]} 33. Kf2 {[%clk 0:00:17]}  Kb8 {[%clk 0:00:07]} 34. Kf3 {[%clk 0:00:17]}  a4 {[%clk 0:00:06]} 35. c4 {[%clk 0:00:11]}  Nf5 {[%clk 0:00:04]} 36. Re1 {[%clk 0:00:07]}  Nd4+ {[%clk 0:00:04]} 37. Ke4 {[%clk 0:00:07]}  Nc2 {[%clk 0:00:04]} 38. Rc1 {[%clk 0:00:05]}  Nb4 {[%clk 0:00:04]} 39. g4 {[%clk 0:00:05]}  Kc7 {[%clk 0:00:04]} 40. g5 {[%clk 0:00:05]}  Kd7 {[%clk 0:00:05]} 41. Kf5 {[%clk 0:00:04]}  Ke7 {[%clk 0:00:05]} 42. g6 {[%clk 0:00:03]}  a3 {[%clk 0:00:04]} 43. Ra1 {[%clk 0:00:02]}  a2 {[%clk 0:00:04]} 44. Ke5 {[%clk 0:00:03]}  Nd3+ {[%clk 0:00:03]} 45. Ke4 {[%clk 0:00:02]}  Nb4 {[%clk 0:00:04]} 46. Ke5 {[%clk 0:00:03]}  Kf8 {[%clk 0:00:03]} 47. g4 {[%clk 0:00:03]}  Kg7 {[%clk 0:00:03]} 48. Kd6 {[%clk 0:00:04]}  Nd3 {[%clk 0:00:02]} 49. Kc7 {[%clk 0:00:04]}  Ne5 {[%clk 0:00:02]} 50. Kxb6 {[%clk 0:00:05]}  Nxc4+ {[%clk 0:00:03]} 51. Kxc5 {[%clk 0:00:05]}  Ne3 {[%clk 0:00:03]} 52. Rxa2 {[%clk 0:00:05]}  Nxg4 {[%clk 0:00:04]} 53. Ra7+ {[%clk 0:00:06]}  Kxg6 {[%clk 0:00:04]} 54. Ra6+ {[%clk 0:00:07]}  Kg5 {[%clk 0:00:05]} 55. Kd4 {[%clk 0:00:07]}  Kf4 {[%clk 0:00:06]} 56. Ra4 {[%clk 0:00:06]}  Kf5 {[%clk 0:00:06]} 57. Ra8 {[%clk 0:00:06]}  Kf6 {[%clk 0:00:05]} 58. Rf8+ {[%clk 0:00:06]}  Ke6 {[%clk 0:00:05]} 59. Ra8 {[%clk 0:00:05]}  Nf6 {[%clk 0:00:05]} 60. Ra6+ {[%clk 0:00:05]}  Kf5 {[%clk 0:00:05]} 61. Ke3 {[%clk 0:00:05]}  Ng4+ {[%clk 0:00:05]} 62. Kf3 {[%clk 0:00:05]}  Ne5+ {[%clk 0:00:06]} 63. Kg3 {[%clk 0:00:06]}  Nd7 {[%clk 0:00:04]} 64. Ra5+ {[%clk 0:00:05]}  Ne5 {[%clk 0:00:04]} 65. Rb5 {[%clk 0:00:04]}  Ke4 {[%clk 0:00:05]} 66. Ra5 {[%clk 0:00:04]}  Kf5 {[%clk 0:00:05]} 67. Kf2 {[%clk 0:00:03]}  Ke4 {[%clk 0:00:05]} 68. Ke2 {[%clk 0:00:03]}  Kd4 {[%clk 0:00:04]} 69. Ra4+ {[%clk 0:00:03]}  Kd5 {[%clk 0:00:05]} 70. Ke3 {[%clk 0:00:03]}  Nc4+ {[%clk 0:00:05]} 71. Kd3 {[%clk 0:00:04]}  Ne5+ {[%clk 0:00:05]} 72. Kc3 {[%clk 0:00:04]}  Nc6 {[%clk 0:00:05]} 73. Ra6 {[%clk 0:00:04]}  Ne5 {[%clk 0:00:05]} 74. Ra5+ {[%clk 0:00:04]}  Ke4 {[%clk 0:00:05]} 75. Kd2 {[%clk 0:00:04]}  Kd4 {[%clk 0:00:05]} 76. Ra4+ {[%clk 0:00:04]}  Nc4+ {[%clk 0:00:05]} 77. Ke2 {[%clk 0:00:04]}  Kd5 {[%clk 0:00:04]} 78. Kd3 {[%clk 0:00:04]}  Ne5+ {[%clk 0:00:05]} 79. Kc3 {[%clk 0:00:04]}  Nc6 {[%clk 0:00:05]} 80. Rh4 {[%clk 0:00:04]}  Ne5 {[%clk 0:00:05]} 81. Rf4 {[%clk 0:00:03]}  Nc6 {[%clk 0:00:04]} 82. Rf5+ {[%clk 0:00:03]}  Ke4 {[%clk 0:00:04]} 83. Rh5 {[%clk 0:00:03]}  Ne5 {[%clk 0:00:05]} 84. Rxe5+ {[%clk 0:00:02]}  Kxe5 {[%clk 0:00:05]} 1/2-1/2


[Site "https://www.chess.com"]